fUSD/lending_fUSD_20251003
["ID","MTS","AMOUNT","RATE_DAILY","PERIOD"]
[388944414,1759528246479,-768.96952081,0.00016999,2]
[388944415,1759528246492,-986.3309,0.00016999,2]
[388944416,1759528246503,-1000.0,0.00016999,2]
[388944417,1759528246512,-300.0,0.00016999,2]
[388944418,1759528246521,-49277.48301628,0.00017,2]
[388944419,1759528246648,-255.19198608,0.00017,2]
[388944420,1759528246668,-49328.34147301,0.00017,2]
[388944421,1759528246676,-566.81489201,0.00017,2]
[388944422,1759528246687,-939.23470951,0.00017,2]
[388944423,1759528246698,-3434.55260023,0.00017,2]
[388944424,1759528246794,-828.59885401,0.00017,2]
[388944425,1759528246807,-5104.86708127,0.00017,2]
[388944426,1759528262592,-784.72689196,0.0001666,2]
[388944427,1759528300277,449.45,0.00016438,2]
[388944429,1759528313884,150.0,8.2e-05,2]
[388944430,1759528314252,150.0,9.38e-05,2]
[388944431,1759528314623,150.0,0.0001057,2]
[388944432,1759528315236,150.0,0.0001175,2]
[388944433,1759528512334,200.0,0.00016018,2]
[388944434,1759528559355,435.13,0.00016119,2]
[388944435,1759528789197,176.52,0.0001644,2]
[388944443,1759529029131,666.0,0.00015808,3]
[388944444,1759529107407,150.0,0.00015288,2]
[388944445,1759529107478,150.0,0.0001553,2]
[388944446,1759529107542,150.0,0.00015773,2]
[388944447,1759529107617,150.0,0.00016016,2]
[388944448,1759529107677,150.0,0.00016258,2]
[388944449,1759529107756,150.0,0.00016501,2]
[388944450,1759529107974,150.0,0.00015288,2]
[388944451,1759529108047,150.0,0.0001553,2]
[388944452,1759529108124,150.0,0.00015773,2]
[388944453,1759529108215,150.0,0.00016016,2]
[388944454,1759529108517,150.0,0.00016258,2]
[388944455,1759529108614,150.0,0.00016501,2]
[388944456,1759529108744,150.0,0.00015288,2]
[388944457,1759529108905,150.0,0.000155,2]
[388944458,1759529109499,150.0,0.00015712,2]
[388944459,1759529109542,150.0,0.00016349,2]
[388944460,1759529109609,150.0,0.00015925,2]
[388944461,1759529109775,150.0,0.00016562,2]
[388944462,1759529109852,150.0,0.00016137,2]
[388944463,1759529115889,150.0,0.00015288,2]
[388944464,1759529115934,150.0,0.00015712,2]
[388944465,1759529115971,150.0,0.00016137,2]
[388944466,1759529116010,150.0,0.00016562,2]
[388944467,1759529117527,150.0,0.00015288,2]
[388944468,1759529120487,1852.42,0.00015803,2]
[388944469,1759529123933,150.0,0.00015288,2]
[388944470,1759529124103,150.0,0.00015288,2]
[388944471,1759529126444,150.0,0.00015288,2]
[388944472,1759529126482,150.0,0.00016137,2]
[388944473,1759529126670,150.0,0.00015288,2]
[388944474,1759529127281,150.0,0.00015854,2]
[388944475,1759529127417,150.0,0.0001642,2]
[388944476,1759529133843,150.0,0.00015288,2]
[388944477,1759529133886,150.0,0.00016137,2]
[388944478,1759529133941,150.0,0.00015288,2]
[388944479,1759529133988,150.0,0.00015712,2]
[388944480,1759529134058,150.0,0.00016137,2]
[388944481,1759529134172,150.0,0.00016562,2]
[388944482,1759529134357,150.0,0.00015288,2]
[388944483,1759529134393,150.0,0.00015627,2]
[388944484,1759529134431,150.0,0.00015967,2]
[388944485,1759529134486,150.0,0.00016307,2]
[388944486,1759529195573,150.0,0.00015795,2]
[388944487,1759529229210,200.0,0.000164,5]
[388944488,1759529232340,500.0,0.000165,6]
[388944489,1759529233458,500.0,0.000166,6]
[388944490,1759529233489,300.0,0.000166,6]
[388944492,1759529288002,161.71759902,0.00016,2]
[388944493,1759529337643,150.0,8.2e-05,2]
[388944494,1759529338005,150.0,9.38e-05,2]
[388944495,1759529338429,150.0,0.0001057,2]
[388944505,1759529432154,-150.0,0.00016647,2]
[388944506,1759529432165,-300.0,0.00016648,2]
[388944507,1759529432176,-195.0,0.00016649,2]
[388944508,1759529432186,-300.0,0.00016651,2]
[388944509,1759529432197,-103.75148979,0.00016656,2]
[388944510,1759529432209,-1896.24851021,0.00016656,2]
[388944511,1759529432219,-300.0,0.00016665,2]
[388944512,1759529432230,-1200.0,0.00016665,2]
[388944513,1759529432240,-296.0,0.00016665,2]
[388944514,1759529432251,-1670.86452819,0.00016666,2]
[388944516,1759529432406,-329.13547181,0.00016666,2]
[388944518,1759529432415,-2000.0,0.00016666,2]
[388944520,1759529432425,-435.03631884,0.000167,2]
[388944521,1759529432434,-1100.0,0.000167,6]
[388944522,1759529432446,-177.34000271,0.000167,2]
[388944523,1759529432456,-1000.0,0.00016724,2]
[388944524,1759529432476,-500.0,0.00016735,2]
[388944525,1759529432486,-249.81046687,0.00016735,2]
[388944527,1759529432496,-500.0,0.00016735,2]
[388944529,1759529432506,-500.0,0.00016735,2]
[388944532,1759529432516,-196.10918086,0.00016735,2]
[388944535,1759529432526,-1921.09,0.00016736,2]
[388944538,1759529432535,-1056.47,0.00016736,2]
[388944541,1759529432545,-4750.27,0.00016736,2]
[388944544,1759529432554,-150.99,0.00016736,2]
[388944547,1759529432564,-47888.9,0.00016736,2]
[388944551,1759529432574,-9000.0,0.00016741,2]
[388944555,1759529432583,-152.1794307,0.00016741,2]
[388944558,1759529432593,-7965.41053268,0.00016741,2]
[388944561,1759529432602,-644.79446246,0.00016741,2]
[388944564,1759529432611,-257.91778498,0.00016741,2]
[388944567,1759529432621,-150.0,0.00016744,2]
[388944570,1759529432631,-150.0,0.00016744,2]
[388944573,1759529432640,-500.0,0.00016773,2]
[388944576,1759529432650,-500.0,0.00016773,2]
[388944579,1759529432659,-500.0,0.00016773,2]
[388944582,1759529432669,-500.0,0.00016773,2]
[388944585,1759529432679,-150.0,0.00016774,2]
[388944587,1759529432688,-3261.51,0.0001679,2]
[388944589,1759529432697,-3261.51,0.0001679,2]
[388944591,1759529432707,-8260.13072239,0.00016796,2]
[388944593,1759529432716,-151.0,0.00016797,2]
[388944595,1759529432726,-619.77090263,0.00016799,2]
[388944597,1759529432735,-155.67326095,0.00016799,2]
[388944599,1759529432744,-47780.74045781,0.000168,2]
[388944602,1759529432757,-795.1227828,0.000168,2]
[388944605,1759529432781,-2909.03341099,0.000168,2]
[388944628,1759529438030,-550.3399388,0.000168,2]
[388944629,1759529438181,-49329.06132781,0.000168,2]
[388944630,1759529438191,-60409.97867218,0.000168,2]
[388944661,1759529440409,-9030.00000004,0.000168,2]
[388944662,1759529440421,-5799.5,0.000168,2]
[388944663,1759529440432,-2314.0909094,0.000168,2]
[388944664,1759529440443,-237633.21638393,0.000168,2]
[388944672,1759529443155,-171217.71610137,0.000168,2]
[388944673,1759529443165,-1400.0,0.000168,6]
[388944674,1759529443174,-914.27842826,0.00016819,2]
[388944675,1759529443183,-263.84593,0.0001683,2]
[388944676,1759529443192,-1868.49524958,0.00016851,2]
[388944677,1759529443201,-1000.0,0.00016862,2]
[388944678,1759529443210,-620.75149815,0.00016862,2]
[388944679,1759529443219,-168.0,0.00016866,2]
[388944680,1759529443228,-157.12519577,0.00016873,2]
[388944681,1759529443237,-500.0,0.00016873,2]
[388944682,1759529443246,-500.0,0.00016873,2]
[388944683,1759529443254,-500.0,0.00016873,2]
[388944684,1759529443263,-500.0,0.00016873,2]
[388944685,1759529443272,-500.0,0.00016873,2]
[388944686,1759529443281,-160.0416267,0.00016873,2]
[388944687,1759529443289,-527.57625572,0.00016873,2]
[388944688,1759529443299,-500.11413164,0.00016873,2]
[388944689,1759529443307,-500.0,0.00016873,2]
[388944690,1759529443316,-529.46739022,0.00016873,2]
[388944691,1759529443325,-500.0,0.00016873,2]
[388944692,1759529443334,-500.0,0.00016873,2]
[388944693,1759529443343,-161.25648817,0.00016873,2]
[388944694,1759529443353,-500.0,0.00016873,2]
[388944695,1759529443363,-500.0,0.00016873,2]
[388944696,1759529443374,-500.0,0.00016873,2]
[388944697,1759529443384,-500.0,0.00016873,2]
[388944698,1759529443395,-500.0,0.00016873,2]
[388944699,1759529443404,-302.55203723,0.00016873,2]
[388944700,1759529443414,-500.0,0.00016873,2]
[388944701,1759529443423,-500.0,0.00016873,2]
[388944702,1759529443432,-500.0,0.00016873,2]
[388944703,1759529443441,-500.0,0.00016873,2]
[388944704,1759529443450,-500.0,0.00016873,2]
[388944705,1759529443460,-500.0,0.00016873,2]
[388944706,1759529443473,-500.0,0.00016873,2]
[388944707,1759529443483,-1000.0,0.00016886,2]
[388944708,1759529443492,-192.18665368,0.00016897,2]
[388944709,1759529443503,-200.0,0.000169,6]
[388944710,1759529443513,-185.36517585,0.000169,2]
[388944711,1759529443522,-89332.70193866,0.000169,2]
[388944719,1759529443826,-1182.4159215,0.000169,2]
[388944720,1759529444836,-1429.97121652,0.000169,2]
[388944721,1759529444860,-122491.72795772,0.000169,2]
[388944724,1759529446085,-1093.3,0.000169,2]
[388944725,1759529446098,-1458.1,0.000169,2]
[388944726,1759529446976,-302.0,0.000169,2]
[388944727,1759529578578,1000.0,0.00016438,2]
[388944728,1759529608566,809.6,0.00015881,2]
[388944729,1759529733370,605.32,0.00016556,2]
[388944730,1759529807745,700.0,0.00012042,2]
[388944731,1759529809356,700.0,0.00012187,2]
[388944732,1759529811082,700.0,0.00012332,2]
[388944733,1759529812417,700.0,0.00012477,2]
[388944734,1759529814080,700.0,0.00012623,2]
[388944735,1759529815699,700.0,0.00012768,2]
[388944736,1759529817248,700.0,0.00012913,2]
[388944737,1759529818811,700.0,0.00013058,2]
[388944738,1759529820540,700.0,0.00013203,2]
[388944739,1759529822641,700.0,0.00013348,2]
[388944740,1759529823692,700.0,0.00013493,2]
[388944741,1759529824840,195.0,0.00014683,2]
[388944742,1759529824952,195.0,0.00014994,2]
[388944743,1759529825746,700.0,0.00013638,2]
[388944744,1759529827327,700.0,0.00013783,2]
[388944745,1759529828823,700.0,0.00013929,2]
[388944746,1759529830387,700.0,0.00014074,2]
[388944747,1759529833046,700.0,0.00014219,2]
[388944748,1759529834269,700.0,0.00014364,2]
[388944749,1759529836187,700.0,0.00014509,2]
[388944750,1759529837396,700.0,0.00014654,2]
[388944751,1759529838972,700.0,0.00014799,2]
[388944752,1759529840670,700.0,0.00014944,2]
[388944753,1759529842258,700.0,0.00015089,2]
[388944754,1759529843942,700.0,0.00015234,2]
[388944755,1759529845356,700.0,0.0001538,2]
[388944756,1759529846926,700.0,0.00015525,2]
[388944757,1759529848629,700.0,0.0001567,2]
[388944758,1759529849904,150.0,8.2e-05,2]
[388944759,1759529850069,700.0,0.00015815,2]
[388944760,1759529850681,150.0,9.38e-05,2]
[388944761,1759529850820,150.0,0.0001057,2]
[388944762,1759529851058,150.0,0.0001175,2]
[388944763,1759529851640,700.0,0.0001596,2]
[388944764,1759529853203,700.0,0.00016105,2]
[388944765,1759529854828,700.0,0.0001625,2]
[388944766,1759529856531,700.0,0.00016395,2]
[388944767,1759529857997,700.0,0.0001654,2]
[388944771,1759530014701,9427.18,0.00015808,2]
[388944772,1759530058515,250.0,0.00015867,2]
[388944773,1759530121641,-207.39801678,0.00016613,2]
[388944774,1759530175077,200.0,0.00015777,2]
[388944775,1759530177424,1269.98348631,0.00016601,2]
[388944776,1759530178413,-156.29,0.00016613,2]
[388944777,1759530244036,15725.60462816,0.00016527,2]
[388944778,1759530246787,-166.47344729,0.00016613,2]
[388944779,1759530252515,672.27,0.00015775,2]
[388944780,1759530307852,150.0,0.00015288,2]
[388944781,1759530307908,150.0,0.00015712,2]
[388944782,1759530307957,150.0,0.00016137,2]
[388944783,1759530308016,150.0,0.00016562,2]
[388944784,1759530308238,150.0,0.00015288,2]
[388944785,1759530308287,150.0,0.00015571,2]
[388944786,1759530308336,150.0,0.00015854,2]
[388944787,1759530308387,150.0,0.00016137,2]
[388944788,1759530308442,150.0,0.0001642,2]
[388944789,1759530308596,150.0,0.00015288,2]
[388944790,1759530308654,150.0,0.00015476,2]
[388944791,1759530308715,150.0,0.00015665,2]
[388944792,1759530308774,150.0,0.00015854,2]
[388944793,1759530308822,150.0,0.00016043,2]
[388944794,1759530308886,150.0,0.00016231,2]
[388944795,1759530308961,150.0,0.0001642,2]
[388944796,1759530312504,150.0,0.000155,2]
[388944797,1759530312543,150.0,0.00015712,2]
[388944798,1759530312707,150.0,0.00015925,2]
[388944799,1759530312763,150.0,0.00016137,2]
[388944800,1759530312796,150.0,0.00016349,2]
[388944801,1759530312833,150.0,0.00016562,2]
[388944802,1759530314319,150.0,0.00015288,2]
[388944803,1759530317271,150.0,0.00015288,2]
[388944804,1759530317335,150.0,0.00015571,2]
[388944805,1759530317407,150.0,0.00015854,2]
[388944806,1759530317479,150.0,0.00016137,2]
[388944807,1759530317547,150.0,0.0001642,2]
[388944808,1759530319496,150.0,0.00015288,2]
[388944809,1759530325627,150.0,0.00015288,2]
[388944810,1759530325695,150.0,0.00015854,2]
[388944811,1759530325775,150.0,0.0001642,2]
[388944812,1759530325874,150.0,0.00015288,2]
[388944813,1759530326054,150.0,0.00015288,2]
[388944814,1759530327216,150.0,0.00015288,2]
[388944815,1759530327366,150.0,0.00015712,2]
[388944816,1759530327420,150.0,0.00016137,2]
[388944817,1759530327474,150.0,0.00016562,2]
[388944818,1759530331358,150.0,0.00015288,2]
[388944819,1759530331447,150.0,0.0001642,2]
[388944820,1759530332893,150.0,0.00015288,2]
[388944821,1759530332935,150.0,0.00016137,2]
[388944822,1759530334574,150.0,0.00015854,2]
[388944823,1759530334804,150.0,0.00015288,2]
[388944824,1759530334888,150.0,0.0001553,2]
[388944825,1759530335041,150.0,0.00015773,2]
[388944826,1759530335083,150.0,0.00016016,2]
[388944827,1759530335143,150.0,0.00016258,2]
[388944828,1759530335182,150.0,0.00016501,2]
[388944829,1759530357086,185.78,0.00015785,2]
[388944830,1759530362760,150.0,8.2e-05,2]
[388944831,1759530363365,150.0,9.38e-05,2]
[388944832,1759530363746,150.0,0.0001057,2]
[388944833,1759530364151,150.0,0.0001175,2]
[388944834,1759530364585,150.0,0.0001293,2]
[388944835,1759530415120,2672.93,0.0001577,2]
[388944836,1759530429554,-150.0,0.00016609,2]
[388944837,1759530429579,-44.76652254,0.00016614,2]
[388944838,1759530438408,156.29,6.721e-05,2]
[388944839,1759530439048,190.38145939,6.721e-05,2]
[388944840,1759530447590,168.0,0.00016177,2]
[388944841,1759530489397,1286.0,0.00015766,2]
[388944843,1759530517503,1223.133451,0.00016531,2]
[388944844,1759530520928,13833.78715719,0.0001,2]
[388944845,1759530521028,4481.24943847,0.00015,2]
[388944846,1759530582172,395.443,0.0001652,2]
[388944853,1759530632592,-702.98716632,0.00016614,2]
[388944854,1759530632604,-1252.24631114,0.00016614,2]
[388944855,1759530632614,-300.0,0.00016614,2]
[388944856,1759530632624,-250.3920849,0.00016617,2]
[388944857,1759530632635,-34.18402219,0.0001662,2]
[388944858,1759530632657,-1621.38405484,0.0001662,2]
[388944861,1759530632716,-683.65603696,0.0001662,2]
[388944863,1759530632770,-160.77588601,0.0001662,2]
[388944865,1759530632780,-184.0,0.00016622,2]
[388944867,1759530632789,-243.97411399,0.00016622,2]
[388944871,1759530632800,-956.02588601,0.00016622,2]
[388944875,1759530632810,-250.0,0.00016622,2]
[388944878,1759530632819,-2000.0,0.00016623,2]
[388944881,1759530632828,-2000.0,0.00016623,2]
[388944884,1759530632837,-2000.0,0.00016623,2]
[388944886,1759530632847,-300.0,0.00016623,2]
[388944888,1759530632856,-241.0,0.00016628,2]
[388944890,1759530632865,-500.0,0.00016628,2]
[388944892,1759530632875,-188.18903506,0.00016628,2]
[388944894,1759530632885,-500.0,0.00016628,2]
[388944896,1759530632893,-500.0,0.00016628,2]
[388944898,1759530632903,-500.0,0.00016628,2]
[388944900,1759530632912,-500.0,0.00016628,2]
[388944902,1759530632921,-500.0,0.00016628,2]
[388944904,1759530632930,-500.0,0.00016628,2]
[388944906,1759530632940,-500.0,0.00016628,2]
[388944908,1759530632949,-500.0,0.00016628,2]
[388944910,1759530632958,-500.0,0.00016628,2]
[388944912,1759530632967,-500.0,0.00016628,2]
[388944914,1759530632977,-500.0,0.00016628,2]
[388944916,1759530632985,-500.0,0.00016628,2]
[388944918,1759530632994,-169.27427996,0.0001663,2]
[388944920,1759530633004,-231.28369723,0.0001663,2]
[388944922,1759530633013,-578.20924308,0.0001663,2]
[388944924,1759530633023,-7965.41053268,0.0001663,2]
[388944926,1759530633031,-499.99,0.00016662,2]
[388944927,1759530633041,-150.99,0.00016662,2]
[388944928,1759530633051,-185.78,0.00016662,2]
[388944929,1759530633060,-809.6,0.00016675,2]
[388944930,1759530633073,-8260.13072239,0.00016685,2]
[388944931,1759530633083,-700.0,0.00016686,2]
[388944932,1759530633093,-150.0,0.00016703,2]
[388944933,1759530633102,-150.0,0.00016703,2]
[388944934,1759530633111,-5219.17207867,0.00016721,2]
[388944935,1759530633120,-1717.53818,0.0001673,2]
[388944936,1759530633131,-3184.21636816,0.00016735,2]
[388944937,1759530633140,-4040.8042,0.00016735,2]
[388944938,1759530633149,-3625.5786,0.00016735,2]
[388944939,1759530633159,-8565.75555911,0.0001674,2]
[388944940,1759530633169,-150.0,0.00016744,2]
[388944941,1759530633179,-3184.21636813,0.00016753,2]
[388944942,1759530633188,-151.0,0.00016758,2]
[388944943,1759530633197,-151.0,0.00016758,2]
[388944944,1759530633206,-151.0,0.00016758,2]
[388944945,1759530633215,-151.0,0.00016758,2]
[388944946,1759530633226,-601.3376128,0.00016758,2]
[388944947,1759530633235,-151.0,0.00016758,2]
[388944948,1759530633244,-151.0,0.00016758,2]
[388944949,1759530633254,-151.0,0.00016758,2]
[388944950,1759530633263,-151.0,0.00016758,2]
[388944951,1759530633272,-151.0,0.00016758,2]
[388944952,1759530633281,-203.38446236,0.00016758,2]
[388944953,1759530633290,-500.0,0.00016758,2]
[388944954,1759530633300,-151.0,0.00016758,2]
[388944955,1759530633309,-151.0,0.00016758,2]
[388944956,1759530633319,-500.0,0.00016758,2]
[388944957,1759530633328,-151.0,0.00016758,2]
[388944958,1759530633339,-500.0,0.00016758,2]
[388944959,1759530633349,-151.0,0.00016758,2]
[388944960,1759530633358,-500.0,0.00016758,2]
[388944961,1759530633368,-151.0,0.00016758,2]
[388944962,1759530633378,-500.0,0.00016758,2]
[388944963,1759530633388,-200.0,0.00016758,2]
[388944964,1759530633397,-151.0,0.00016758,2]
[388944965,1759530633407,-500.0,0.00016758,2]
[388944966,1759530633417,-500.0,0.00016758,2]
[388944967,1759530633426,-200.0,0.00016758,2]
[388944968,1759530633435,-151.0,0.00016758,2]
[388944969,1759530633444,-500.0,0.00016758,2]
[388944970,1759530633455,-500.0,0.00016758,2]
[388944971,1759530633464,-500.0,0.00016758,2]
[388944972,1759530633473,-151.0,0.00016758,2]
[388944973,1759530633482,-646.25507874,0.00016758,2]
[388944974,1759530633492,-200.0,0.00016758,2]
[388944975,1759530633501,-151.0,0.00016758,2]
[388944976,1759530633511,-151.0,0.00016758,2]
[388944977,1759530633520,-500.0,0.00016758,2]
[388944978,1759530633530,-151.0,0.00016758,2]
[388944979,1759530633539,-200.0,0.00016758,2]
[388944980,1759530633548,-151.0,0.00016758,2]
[388944981,1759530633557,-500.0,0.00016758,2]
[388944982,1759530633566,-151.0,0.00016758,2]
[388944983,1759530633575,-200.0,0.00016758,2]
[388944984,1759530633584,-151.0,0.00016758,2]
[388944985,1759530633593,-200.0,0.00016758,2]
[388944986,1759530633602,-311.18259562,0.00016758,2]
[388944987,1759530633612,-500.0,0.00016758,2]
[388944988,1759530633624,-151.0,0.00016758,2]
[388944989,1759530633633,-201.23681298,0.00016758,2]
[388944990,1759530633642,-151.0,0.00016758,2]
[388944991,1759530633652,-151.0,0.00016758,2]
[388944992,1759530633661,-200.0,0.00016758,2]
[388944993,1759530633670,-500.0,0.00016758,2]
[388944994,1759530633681,-151.0,0.00016758,2]
[388944995,1759530633692,-151.0,0.00016758,2]
[388944996,1759530633703,-500.0,0.00016758,2]
[388944997,1759530633714,-151.0,0.00016758,2]
[388944998,1759530633723,-151.0,0.00016758,2]
[388944999,1759530633733,-500.0,0.00016758,2]
[388945000,1759530633742,-151.0,0.00016758,2]
[388945001,1759530633752,-151.0,0.00016758,2]
[388945002,1759530633762,-151.0,0.00016758,2]
[388945003,1759530633772,-151.0,0.00016758,2]
[388945004,1759530633781,-151.0,0.00016758,2]
[388945005,1759530633791,-151.0,0.00016758,2]
[388945006,1759530633800,-151.0,0.00016758,2]
[388945007,1759530633810,-151.0,0.00016758,2]
[388945008,1759530633820,-151.0,0.00016758,2]
[388945009,1759530633830,-151.0,0.00016758,2]
[388945010,1759530633839,-151.0,0.00016758,2]
[388945011,1759530633849,-151.0,0.00016758,2]
[388945012,1759530633859,-151.0,0.00016758,2]
[388945013,1759530633868,-151.0,0.00016758,2]
[388945014,1759530633878,-151.0,0.00016758,2]
[388945015,1759530633889,-151.0,0.00016758,2]
[388945016,1759530633899,-151.0,0.00016758,2]
[388945017,1759530633909,-151.0,0.00016758,2]
[388945018,1759530633918,-151.0,0.00016758,2]
[388945019,1759530633928,-200.0,0.00016758,2]
[388945020,1759530633939,-151.0,0.00016758,2]
[388945021,1759530633950,-151.0,0.00016758,2]
[388945022,1759530633961,-322.6107,0.00016758,2]
[388945023,1759530633973,-76.21453178,0.00016767,2]
[388945024,1759530633986,-423.78546822,0.00016767,2]
[388945025,1759530633997,-30942.4630229,0.00016768,2]
[388945026,1759530634008,-3184.21636813,0.00016772,2]
[388945027,1759530634018,-150.0,0.00016774,2]
[388945028,1759530634028,-155.03106393,0.00016783,2]
[388945029,1759530634038,-3184.21636813,0.0001679,2]
[388945030,1759530634048,-186.98088002,0.00016794,2]
[388945031,1759530634057,-583.83963185,0.00016794,2]
[388945032,1759530634069,-186.83082638,0.00016794,2]
[388945033,1759530634082,-4352.99513372,0.00016795,2]
[388945034,1759530634161,-500.0,0.00016628,2]
[388945035,1759530634170,-500.0,0.00016628,2]
[388945036,1759530634180,-4529.69338108,0.00016795,2]
[388945037,1759530634190,-150.0,0.00016798,2]
[388945038,1759530634200,-3184.21636813,0.00016808,2]
[388945039,1759530634211,-500.0,0.00016811,2]
[388945040,1759530634220,-150.0,0.00016811,2]
[388945041,1759530634230,-500.0,0.00016811,2]
[388945042,1759530634239,-150.0,0.00016811,2]
[388945043,1759530634249,-150.0,0.00016811,2]
[388945044,1759530634259,-500.0,0.00016811,2]
[388945045,1759530634268,-814.87,0.00016825,2]
[388945046,1759530634277,-150.0,0.00016825,2]
[388945047,1759530634287,-500.0,0.00016825,2]
[388945048,1759530634296,-150.0,0.00016825,2]
[388945049,1759530634306,-500.0,0.00016825,2]
[388945050,1759530634315,-150.0,0.00016825,2]
[388945051,1759530634325,-500.0,0.00016825,2]
[388945052,1759530634334,-150.0,0.00016825,2]
[388945053,1759530634343,-1779.0,0.00016825,2]
[388945054,1759530634353,-150.0,0.00016825,2]
[388945055,1759530634362,-500.0,0.00016825,2]
[388945056,1759530634371,-503.0,0.00016825,2]
[388945057,1759530634381,-150.0,0.00016825,2]
[388945058,1759530634390,-150.0,0.00016825,2]
[388945059,1759530634400,-150.0,0.00016825,2]
[388945060,1759530634409,-166.93,0.00016825,2]
[388945061,1759530634418,-166.93,0.00016825,2]
[388945062,1759530634428,-166.93,0.00016825,2]
[388945063,1759530634438,-1749.08,0.00016825,2]
[388945064,1759530634450,-3184.21636813,0.00016827,2]
[388945065,1759530634460,-150.85964301,0.00016827,2]
[388945066,1759530634471,-700.0,0.00016831,2]
[388945067,1759530634481,-151.0,0.00016832,2]
[388945068,1759530634491,-151.0,0.00016832,2]
[388945069,1759530634506,-6078.0306599,0.00016835,2]
[388945070,1759530634516,-183542.70241413,0.00016835,2]
[388945073,1759530638200,-500.0,0.00016628,2]
[388945074,1759530638211,-500.0,0.00016628,2]
[388945075,1759530638222,-500.0,0.00016628,2]
[388945076,1759530638232,-500.0,0.00016628,2]
[388945077,1759530638242,-350.40167176,0.00016628,2]
[388945078,1759530638252,-500.0,0.00016628,2]
[388945079,1759530638261,-500.0,0.00016628,2]
[388945080,1759530638271,-500.0,0.00016628,2]
[388945081,1759530638281,-500.0,0.00016628,2]
[388945082,1759530638291,-500.0,0.00016628,2]
[388945083,1759530638300,-500.0,0.00016628,2]
[388945084,1759530638310,-500.0,0.00016811,2]
[388945085,1759530638320,-4077.20334367,0.00016835,2]
[388945086,1759530638330,-159.8041497,0.00016835,2]
[388945087,1759530638340,-5943.9180754,0.00016835,2]
[388945088,1759530638350,-3458.369025,0.00016835,2]
[388945089,1759530638360,-2683.54698701,0.00016845,2]
[388945090,1759530638373,-500.66938112,0.00016845,2]
[388945091,1759530638383,-2632.2277202,0.00016845,2]
[388945092,1759530638428,-581.73599717,0.00016845,2]
[388945093,1759530638439,-7811.43853614,0.00016845,2]
[388945094,1759530638449,-1000.0,0.00016846,2]
[388945095,1759530638459,-1745.36751406,0.0001685,2]
[388945096,1759530640282,-595.60899764,0.00016757,2]
[388945097,1759530640293,-406.26474875,0.0001685,2]
[388945098,1759530640305,-1357.53,0.0001685,2]
[388945099,1759530640384,-296.01044619,0.0001685,2]
[388945100,1759530640476,-1263.21533949,0.0001685,2]
[388945101,1759530640488,-4142.95994136,0.0001685,2]
[388945102,1759530640497,-166.93,0.00016863,2]
[388945103,1759530640506,-3184.21636813,0.00016863,2]